bitfinex-derivatives/quotes_ETHF0:USTF0_20250410
["timestamp","ask_amount","ask_price","bid_price","bid_amount"]
[1744271314656,8.40150505,1595.8,1595.7,1.25371]
[1744271314960,8.40150505,1595.8,1595.7,5.6341]
[1744271315157,7.14781505,1595.8,1595.7,11.6293]
[1744271315365,7.14781505,1595.8,1595.7,12.88301]
[1744271315566,7.14781505,1595.8,1595.7,17.62921]
[1744271315963,7.14781505,1595.8,1595.7,58.42921]
[1744271317262,1.25357,1595.9,1595.8,1.25364]
[1744271317466,1.25353,1596.0,1595.8,10.09554]
[1744271317766,7.02216,1595.9,1595.8,10.09554]
[1744271317969,7.02216,1595.9,1595.8,8.8419]
[1744271318165,7.02216,1595.9,1595.8,3.2078]
[1744271318365,5.7686,1595.9,1595.8,10.41384]
[1744271318560,12.20661505,1596.2,1596.1,1.2534]
[1744271318764,7.14781505,1596.2,1596.1,4.4612]
[1744271318967,7.14781505,1596.2,1596.1,15.4564]
[1744271319166,7.14781505,1596.2,1596.1,31.3146]
[1744271320758,7.14781505,1596.2,1596.1,16.4088]
[1744271322568,8.40113505,1596.2,1596.1,15.1554]
[1744271322874,8.40113505,1596.2,1596.1,9.203]
[1744271323274,1.25331,1596.3,1596.1,10.4564]
[1744271323473,6.68631,1596.3,1596.1,15.9054]
[1744271323671,1.25332,1596.2,1596.1,15.9054]
[1744271323878,5.866,1596.2,1596.1,14.652]
[1744271324074,7.11932,1596.2,1596.1,9.203]
[1744271324472,12.11932,1596.2,1596.1,9.203]
[1744271325279,7.11932,1596.2,1596.1,9.203]
[1744271328185,7.21639529,1596.2,1596.1,9.203]
[1744271329777,12.21639529,1596.2,1596.1,9.203]
[1744271330382,7.21639529,1596.2,1596.1,9.203]
[1744271332274,12.21639529,1596.2,1596.1,5.9952]
[1744271332481,12.21639529,1596.2,1596.1,9.203]
[1744271332882,12.21639529,1596.2,1596.1,5.9952]
[1744271333076,12.21639529,1596.2,1596.1,3.2078]
[1744271333282,12.21639529,1596.2,1595.8,5.9952]
[1744271333283,1.25356,1595.9,1595.8,5.9952]
[1744271333482,1.25364,1595.8,1595.7,3.21721058]
[1744271333874,5.4173,1595.9,1595.7,4.47092058]
[1744271334070,6.6709,1595.9,1595.8,7.09426471]
[1744271334576,6.6709,1595.9,1595.8,5.84062471]
[1744271334780,1.25364,1595.8,1595.7,4.47092058]
[1744271334978,6.67094,1595.8,1595.7,3.21721058]
[1744271335480,6.67094,1595.8,1595.7,4.47092058]
[1744271335680,1.25364,1595.8,1595.7,4.47092058]
[1744271335880,1.25356,1595.9,1595.7,4.47086058]
[1744271336082,1.25359,1595.9,1595.8,1.25359]
[1744271336283,5.4173,1596.0,1595.9,1.25356]
[1744271336581,4.9969,1596.1,1596.0,1.25348]
[1744271336783,3.13294,1596.4,1596.0,5.9952]
[1744271336784,3.13298,1596.4,1596.0,5.9952]
[1744271337098,1.25332,1596.2,1596.1,9.203]
[1744271337389,1.58989845,1596.2,1596.1,9.203]
[1744271338789,1.58989845,1596.2,1596.1,5.9952]
[1744271339295,1.58989845,1596.2,1596.1,9.203]
[1744271340391,1.25332,1596.2,1596.1,9.203]
[1744271340694,1.59019663,1596.2,1596.1,15.1323]
[1744271341189,1.59019663,1596.2,1596.1,9.203]
[1744271342492,1.59019663,1596.2,1596.1,3.2078]
[1744271343291,1.59019663,1596.2,1596.1,8.755]
[1744271346403,1.59051153,1596.2,1596.1,8.755]
[1744271347898,1.59051153,1596.2,1596.1,10.0084]
[1744271348100,1.59051153,1596.2,1596.1,8.755]
[1744271348398,1.59040688,1596.2,1596.1,8.755]
[1744271348599,0.33708688,1596.2,1596.1,10.0084]
[1744271348900,5.3972,1596.6,1596.1,14.237]
[1744271349102,1.59023071,1596.5,1596.4,4.46096]
[1744271349397,0.33709071,1596.5,1596.4,4.46096]
[1744271349795,1.59018071,1596.5,1596.4,3.2078]
[1744271349995,0.33709071,1596.5,1596.4,4.46096]
[1744271350201,1.59018071,1596.5,1596.4,4.46096]
[1744271350401,0.33709071,1596.5,1596.4,4.46096]
[1744271352200,1.25301,1596.6,1596.4,14.685]
[1744271352401,1.25299,1596.7,1596.6,1.25299]
[1744271352598,1.59010931,1596.7,1596.6,4.46079]
[1744271352905,0.33711931,1596.7,1596.6,4.46079]
[1744271353306,0.33711931,1596.7,1596.6,9.30939]
[1744271353508,11.40221,1596.8,1596.7,1.25293]
[1744271353811,0.3369927,1596.8,1596.7,1.25293]
[1744271354301,0.3369927,1596.8,1596.7,7.24813]
[1744271354501,0.3677831,1596.8,1596.7,7.24813]
[1744271354908,0.3677831,1596.8,1596.7,48.04813]
[1744271355210,0.0307904,1596.8,1596.7,48.04813]
[1744271356106,7.14781505,1597.1,1596.7,57.2762]
[1744271356304,8.40043505,1597.1,1597.0,3.2078]
[1744271356500,7.14781505,1597.1,1597.0,3.2078]
[1744271356800,8.40043505,1597.1,1597.0,3.2078]
[1744271356999,7.14781505,1597.1,1597.0,9.16899]
[1744271357200,8.40043505,1597.1,1597.0,7.9163]
[1744271357507,8.40043505,1597.1,1597.0,3.2078]
[1744271357811,8.40043505,1597.1,1597.0,4.46049]
[1744271358509,8.40043505,1597.1,1597.0,3.2078]
[1744271359011,8.43152658,1597.1,1597.0,3.2078]
[1744271359504,8.43152658,1597.1,1597.0,4.46049]
[1744271359710,7.17890658,1597.1,1597.0,4.46049]
[1744271360410,7.17890658,1597.1,1597.0,9.94049]
[1744271360712,7.20999811,1597.1,1597.0,9.94049]
[1744271361810,0.06218306,1597.1,1597.0,9.94049]
[1744271363113,1.25235,1597.5,1597.3,1.25239]
[1744271363314,11.38065,1597.5,1597.3,3.2078]
[1744271363504,0.03084516,1597.4,1597.3,4.4602]
[1744271363900,0.03084516,1597.4,1597.3,9.5007]
[1744271364613,7.14781505,1597.6,1597.5,1.19060968]
[1744271364804,7.14781505,1597.6,1597.5,4.39840968]
[1744271365110,7.14781505,1597.6,1597.5,56.19440968]
[1744271366509,7.14781505,1597.6,1597.5,56.65840968]
[1744271366711,8.40003505,1597.6,1597.5,55.4678]
[1744271366913,7.14781505,1597.6,1597.5,51.2561]
[1744271367114,8.40003505,1597.6,1597.5,50.0038]
[1744271367413,13.97643505,1597.6,1597.5,51.2561]
[1744271367612,12.72421505,1597.6,1597.5,51.2561]
[1744271367812,7.14781505,1597.6,1597.5,51.2561]
[1744271368214,7.14781505,1597.6,1597.5,56.7191]
[1744271368420,9.4651,1598.0,1597.6,1.25216]
[1744271368622,5.5764,1597.7,1597.6,6.71376]
[1744271368816,5.5764,1597.7,1597.6,9.92156]
[1744271369015,6.82854,1597.7,1597.6,9.92156]
[1744271370222,6.82854,1597.7,1597.6,3.2078]
[1744271373918,6.84461662,1597.7,1597.6,3.2078]
[1744271374427,0.01607662,1597.7,1597.6,10.45602]
[1744271374631,0.01607662,1597.7,1597.6,21.03282]
[1744271374820,0.01607662,1597.7,1597.6,61.83282]
[1744271375025,0.01607662,1597.7,1597.6,66.83282]
[1744271375528,15.244,1598.4,1598.2,1.25174]
[1744271375529,16.49566,1598.4,1598.2,1.25174]
[1744271375729,7.16047,1598.3,1598.2,1.25174]
[1744271375930,7.16047,1598.3,1598.2,3.2078]
[1744271376228,7.16047,1598.3,1598.2,9.0176]
[1744271377526,10.69293,1598.4,1598.3,1.25167]
[1744271377722,7.14781505,1598.6,1598.3,5.8098]
[1744271378025,14.30805505,1598.6,1598.5,3.2078]
[1744271378233,1.2516,1598.4,1598.3,0.00941058]
[1744271379130,7.16037,1598.5,1598.3,1.26108058]
[1744271379432,5.9088,1598.5,1598.4,4.4594]
[1744271379725,7.16032,1598.5,1598.4,3.2078]
[1744271379926,9.9622,1598.7,1598.4,4.45936]
[1744271379927,1.2515,1598.6,1598.4,4.45936]
[1744271380229,1.2515,1598.6,1598.5,8.7657]
[1744271380230,6.7408,1598.6,1598.5,8.7657]
[1744271380527,6.7408,1598.6,1598.4,1.25156]
[1744271380528,1.2516,1598.4,1598.3,3.21721058]
[1744271380929,1.2516,1598.4,1598.3,4.46888058]
[1744271381131,1.2516,1598.4,1598.3,49.57511058]
[1744271381730,1.2516,1598.4,1598.3,44.01721058]
[1744271382524,1.2516,1598.4,1598.3,3.21721058]
[1744271382833,6.2516,1598.4,1598.3,3.21721058]
[1744271383233,1.2516,1598.4,1598.3,3.21721058]
[1744271384436,6.58793265,1598.4,1598.3,0.00941058]
[1744271384730,1.58793265,1598.4,1598.3,0.00941058]
[1744271385128,1.2516,1598.4,1598.3,0.00941058]
[1744271385330,1.5879442,1598.4,1598.3,0.00941058]
[1744271385737,6.74086,1598.5,1598.3,1.26104058]
[1744271385940,6.74086,1598.5,1598.4,3.2078]
[1744271386635,6.74086,1598.5,1598.4,4.4594]
[1744271386838,1.25144,1598.6,1598.5,1.25152]
[1744271387030,1.25125,1598.9,1598.5,14.84078]
[1744271387229,1.25125,1598.9,1598.8,3.2078]
[1744271387738,1.25125,1598.9,1598.8,8.9238]
[1744271388132,6.87727,1599.0,1598.8,16.17103]
[1744271388338,6.87727,1599.0,1598.9,5.8373]
[1744271388841,0.48201388,1599.4,1598.9,16.8333]
[1744271389044,0.33640571,1599.3,1599.0,3.2078]
[1744271389339,1.25085,1599.4,1599.2,3.2078]
[1744271389542,1.25085,1599.4,1599.2,4.4587]
[1744271389749,7.01955,1599.4,1599.2,10.296]
[1744271389933,12.16461505,1599.5,1599.3,5.996]
[1744271390132,12.16461505,1599.5,1599.4,9.91761]
[1744271390133,7.14781505,1599.5,1599.4,9.91761]
[1744271390340,7.14781505,1599.5,1599.4,20.67031]
[1744271390644,7.14781505,1599.5,1599.4,72.30761]
[1744271391845,7.14781505,1599.5,1599.4,67.30761]
[1744271392346,7.14781505,1599.5,1599.4,72.30761]
[1744271392740,7.14781505,1599.5,1599.4,67.30761]
[1744271393836,0.17166724,1599.6,1599.5,1.25074]
[1744271394141,0.17166724,1599.6,1599.5,18.39894]
[1744271394347,0.17166724,1599.6,1599.5,23.39894]
[1744271394535,0.17166724,1599.6,1599.5,64.19894]
[1744271394740,1.2503,1600.1,1599.9,1.2504]
[1744271395047,16.53725,1600.2,1600.0,10.15235]
[1744271395251,1.25046,1599.9,1599.8,3.2078]
[1744271395551,1.2504,1600.0,1599.8,4.4583]
[1744271395742,1.2504,1600.0,1599.8,8.902]
[1744271395943,1.2504,1600.0,1599.9,5.6942]
[1744271396448,1.25042,1599.9,1599.8,3.2078]
[1744271396844,6.25042,1599.9,1599.8,3.2078]
[1744271397244,1.2505,1599.8,1599.7,6.00538056]
[1744271397451,11.262,1599.8,1599.7,6.00538056]
[1744271397847,11.262,1599.8,1599.7,3.21718056]
[1744271398649,11.262,1599.8,1599.7,8.61028056]
[1744271399455,11.262,1599.8,1599.7,9.86086056]
[1744271399655,1.25041,1600.0,1599.8,1.25047]
[1744271399953,1.25042,1600.0,1599.9,3.2078]
[1744271400254,1.25042,1599.9,1599.8,5.928]
[1744271400451,1.2505,1599.8,1599.7,3.21718056]
[1744271400755,5.8871,1599.8,1599.7,0.00938056]
[1744271401152,1.2505,1599.8,1599.7,3.21718056]
[1744271401349,1.25048,1599.9,1599.7,9.14518056]
[1744271401555,4.6366,1600.1,1599.8,5.928]
[1744271401757,5.88687,1600.1,1600.0,3.2078]
[1744271404355,4.6366,1600.1,1600.0,3.2078]
[1744271404567,5.88687,1600.1,1600.0,3.2078]
[1744271404855,16.29227,1600.1,1600.0,3.2078]
[1744271405056,1.25035,1600.0,1599.9,3.2078]
[1744271405253,6.65575,1600.0,1599.9,3.2078]
[1744271405458,1.2505,1599.8,1599.7,3.21718056]
[1744271405648,1.2505,1599.8,1599.7,0.00938056]
[1744271405854,1.2505,1599.8,1599.7,3.21718056]
[1744271406063,5.9405,1599.8,1599.7,3.21718056]
[1744271407967,10.9405,1599.8,1599.7,3.21718056]
[1744271408257,1.25074,1599.5,1599.4,3.2078]
[1744271408759,3.12714,1599.4,1599.2,3.2078]
[1744271408956,1.25089,1599.3,1599.2,3.2078]
[1744271409359,12.11093005,1599.3,1599.2,3.2078]
[1744271409659,12.11093005,1599.3,1599.1,0.00938056]
[1744271409660,1.25097,1599.2,1599.1,0.00938056]
[1744271409865,17.35651005,1599.2,1599.1,0.00938056]
[1744271410170,1.25121,1598.9,1598.8,3.2078]
[1744271411054,6.77541,1598.9,1598.8,3.2078]
[1744271411658,1.25128,1598.8,1598.7,0.00938056]
[1744271411859,6.77548,1598.8,1598.7,0.00938056]
[1744271412268,1.25127,1598.9,1598.7,0.00938056]
[1744271412462,4.7426,1599.0,1598.8,3.2078]
[1744271412663,1.25121,1598.9,1598.8,3.2078]
[1744271412866,1.25121,1598.9,1598.7,0.00938056]
[1744271412867,1.25128,1598.8,1598.7,0.00938056]
[1744271414065,5.4751,1598.9,1598.7,0.00938056]
[1744271414267,1.25128,1598.8,1598.7,0.00938056]
[1744271414869,1.58782121,1598.8,1598.7,0.00938056]
[1744271415173,1.58781791,1598.8,1598.7,0.00938056]
[1744271415368,7.52321791,1598.8,1598.7,0.00938056]
[1744271415669,1.25179,1598.2,1598.0,9.2038]
[1744271415866,1.25183,1598.1,1598.0,3.2078]
[1744271416065,5.9354,1598.1,1598.0,4.45971]
[1744271416269,5.0416,1598.7,1598.0,14.2038]
[1744271416471,0.33656157,1598.6,1598.2,3.2078]
[1744271416772,1.25165,1598.4,1598.2,4.46891056]
[1744271416963,1.25167,1598.3,1598.2,4.46891056]
[1744271417268,1.25167,1598.4,1598.2,4.46891056]
[1744271417977,1.25167,1598.3,1598.2,4.46891056]
[1744271418278,1.25167,1598.3,1598.2,3.21718056]
[1744271418775,1.25167,1598.3,1598.2,0.00938056]
[1744271419175,3.12949,1598.2,1597.8,5.996]
[1744271419378,1.25183,1598.1,1597.9,3.2078]
[1744271419569,1.25183,1598.1,1598.0,1.25191]
[1744271420078,6.6947,1598.3,1598.0,5.0]
[1744271420279,1.2517,1598.3,1598.2,3.2078]
[1744271420681,6.8659,1598.3,1598.2,3.2078]
[1744271422175,1.2518,1598.2,1598.0,9.15813056]
[1744271422369,5.6142,1598.3,1598.1,1.25178]
[1744271422678,5.6142,1598.3,1598.2,1.25175]
[1744271422878,1.25175,1598.2,1598.1,3.2078]
[1744271423382,1.25175,1598.2,1598.1,4.45963]
[1744271423782,1.25175,1598.2,1598.1,3.2078]
[1744271425086,1.25183,1598.1,1598.0,0.00938056]
[1744271425384,7.02073,1598.1,1598.0,0.00938056]
[1744271426882,12.02073,1598.1,1598.0,0.00938056]
[1744271427277,7.02073,1598.1,1598.0,0.00938056]
[1744271428393,12.02073,1598.1,1598.0,0.00938056]
[1744271428582,7.02073,1598.1,1598.0,0.00938056]
[1744271429988,15.22853,1598.1,1598.0,0.00938056]
[1744271430483,3.12998,1597.9,1597.2,9.2038]
[1744271430788,1.25246,1597.3,1597.2,51.08334]
[1744271430973,3.13079,1597.5,1597.2,51.08334]
[1744271430974,1.25241,1597.4,1597.3,1.25246]
[1744271431182,4.9086,1597.8,1597.3,5.823]
[1744271431479,11.67917,1597.8,1597.7,3.2078]
[1744271431679,11.67917,1597.8,1597.4,1.26169056]
[1744271431680,1.2523,1597.5,1597.4,4.46949056]
[1744271432188,1.2523,1597.5,1597.4,3.21718056]
[1744271433787,1.2523,1597.5,1597.4,0.00938056]
[1744271433987,6.9131,1597.5,1597.4,3.21718056]
[1744271434582,6.9131,1597.5,1597.4,0.00938056]
[1744271436390,6.9131,1597.5,1597.4,3.21718056]
[1744271436586,6.9131,1597.5,1597.4,0.00938056]
[1744271436788,1.5744761,1597.5,1597.4,0.00938056]
[1744271436995,1.5744761,1597.5,1597.4,3.21718056]
[1744271439094,1.5744761,1597.5,1597.4,0.00938056]
[1744271439290,7.4539761,1597.5,1597.4,0.00938056]
[1744271439794,7.79100778,1597.5,1597.4,0.00938056]
[1744271440293,13.62500778,1597.5,1597.4,0.00938056]
[1744271443096,1.5744761,1597.5,1597.4,4.46956056]
[1744271443291,1.5744761,1597.5,1597.4,3.21718056]
[1744271443700,7.1739761,1597.5,1597.4,0.00938056]
[1744271443898,1.5744761,1597.5,1597.4,0.00938056]
[1744271444095,1.5744761,1597.5,1597.4,3.21718056]
[1744271444292,0.3221761,1597.5,1597.4,4.46956056]
[1744271444487,0.44293407,1597.5,1597.4,8.21718056]
[1744271444692,0.44293407,1597.5,1597.4,9.46956056]
[1744271447092,1.69523407,1597.5,1597.4,8.21718056]
[1744271447289,1.69523407,1597.5,1597.4,9.46956056]
[1744271447494,0.44293407,1597.5,1597.4,15.15946056]
[1744271447696,0.44293407,1597.5,1597.4,10.15946056]
[1744271452602,0.00938056,1597.7,1597.6,1.25222]
[1744271452899,1.59960926,1597.7,1597.6,3.93210449]
[1744271453106,1.59960926,1597.7,1597.6,8.0746]
[1744271453498,1.59960926,1597.7,1597.6,9.32682]
[1744271453703,1.59960926,1597.7,1597.6,14.78552]
[1744271454099,1.59960926,1597.7,1597.6,13.5333]
[1744271454806,1.59960926,1597.7,1597.6,14.78552]
[1744271455108,1.59957926,1597.7,1597.6,14.78552]
[1744271456609,1.60007773,1597.7,1597.6,13.5333]
[1744271457308,1.60007773,1597.7,1597.6,8.6665]
[1744271457507,6.54397773,1597.7,1597.6,8.6665]
[1744271457805,6.54397773,1597.7,1597.6,5.4587]
[1744271458108,6.54397773,1597.7,1597.6,8.6665]
[1744271458407,6.54397773,1597.7,1597.6,5.4587]
[1744271458607,1.2523,1597.5,1597.4,3.21718056]
[1744271458803,1.59085717,1597.5,1597.4,3.21718056]
[1744271459210,1.59085717,1597.5,1597.4,0.00938056]
[1744271459603,1.59102831,1597.5,1597.4,0.00938056]
[1744271460102,1.59102831,1597.5,1597.4,5.73948056]
[1744271460309,1.67600975,1597.5,1597.4,0.00938056]
[1744271460610,7.59720975,1597.5,1597.4,0.00938056]
[1744271461613,15.80500975,1597.5,1597.4,1e-08]
[1744271461805,15.80500975,1597.5,1597.0,9.2038]
[1744271461806,1.25262,1597.1,1597.0,9.2038]
[1744271462108,1.59134831,1597.1,1597.0,8.9436]
[1744271462310,1.59134831,1597.1,1597.0,5.7358]
[1744271462511,1.67632975,1597.1,1597.0,5.7358]
[1744271462907,7.37422975,1597.1,1597.0,8.9436]
[1744271463305,1.25269,1597.0,1596.9,0.00635382]
[1744271463512,17.71441831,1597.0,1596.9,0.00635382]
[1744271463706,22.71441831,1597.0,1596.9,0.00635382]
[1744271464415,22.79879566,1597.0,1596.9,0.00635382]
[1744271465805,17.79879566,1597.0,1596.9,0.00635382]
[1744271466607,12.10089566,1597.0,1596.9,5.47775382]
[1744271467213,6.67389566,1597.0,1596.9,5.47775382]
[1744271467413,6.33577144,1597.0,1596.9,5.47775382]
[1744271468017,0.08498144,1597.0,1596.9,11.73052382]
[1744271468418,1.33767144,1597.0,1596.9,11.73052382]
[1744271468618,0.16996288,1597.0,1596.9,11.73052382]
[1744271468817,1.42265288,1597.0,1596.9,11.73052382]
[1744271469419,1.42265288,1597.0,1596.9,6.73052382]
[1744271469620,0.16996288,1597.0,1596.9,17.72652382]
[1744271470212,1.42265288,1597.0,1596.9,17.72652382]
[1744271470710,1.42265288,1597.0,1596.9,11.47375382]
[1744271471519,7.30595288,1597.0,1596.9,11.47375382]
[1744271472015,1.42265288,1597.0,1596.9,12.72652382]
[1744271472215,0.16996288,1597.0,1596.9,12.72652382]
[1744271473021,0.16996288,1597.0,1596.9,23.15452382]
[1744271473415,0.16996288,1597.0,1596.9,63.95452382]
[1744271473618,0.13244007,1597.0,1596.9,63.95452382]
[1744271473808,4.74638235,1597.4,1597.3,1.25246]
[1744271474114,4.74638235,1597.4,1597.3,4.46026]
[1744271474816,4.74638235,1597.4,1597.3,10.45626]
[1744271475419,4.74638235,1597.6,1597.5,1.2523]
[1744271475619,6.33595953,1597.6,1597.5,3.2078]
[1744271475821,16.91545953,1597.6,1597.5,3.2078]
[1744271476121,18.87884097,1597.6,1597.3,3.2078]
[1744271476422,1.25238,1597.4,1597.3,3.2078]
[1744271476922,6.64698,1597.4,1597.3,3.2078]
[1744271477220,6.73196144,1597.4,1597.3,3.2078]
[1744271477722,7.0693263,1597.4,1597.3,3.2078]
[1744271478417,3.13126,1597.3,1597.1,3.2078]
[1744271478613,6.24719653,1597.2,1597.1,3.2078]
[1744271478808,10.73504,1597.2,1597.1,3.2078]
[1744271479014,16.12964,1597.2,1597.1,3.2078]
[1744271479214,1.25269,1597.0,1596.9,0.00635382]
[1744271479716,6.59001261,1597.0,1596.9,0.00635382]
[1744271480117,12.14451261,1597.0,1596.9,0.00635382]
[1744271480317,12.22949405,1597.0,1596.9,0.00635382]
[1744271480632,18.06349405,1597.0,1596.9,3.82e-06]
[1744271482028,18.06323598,1597.0,1596.9,3.82e-06]
[1744271483529,13.06323598,1597.0,1596.9,3.82e-06]
[1744271483728,13.10982084,1597.0,1596.9,3.82e-06]
[1744271483929,13.10972097,1597.0,1596.9,3.82e-06]
[1744271485823,17.85610332,1597.0,1596.9,3.82e-06]
[1744271486021,17.02210332,1597.0,1596.9,3.82e-06]
[1744271486733,12.02210332,1597.0,1596.9,3.82e-06]
[1744271487422,12.02197008,1597.0,1596.9,5.78830382]
[1744271488224,6.46747008,1597.0,1596.9,5.78830382]
[1744271488727,12.03867008,1597.0,1596.9,3.82e-06]
[1744271489129,12.03867008,1597.0,1596.9,5.54190382]
[1744271489629,7.29228773,1597.0,1596.9,5.54190382]
[1744271493039,7.29228773,1597.0,1596.9,3.82e-06]
[1744271493237,15.50008773,1597.0,1596.9,3.82e-06]
[1744271493935,15.50038873,1597.0,1596.9,3.82e-06]
[1744271494235,1.25309,1596.5,1596.4,3.2078]
[1744271494436,1.59022243,1596.5,1596.4,5.4694]
[1744271494933,1.3846563,1596.5,1596.4,5.4694]
[1744271495136,0.1315663,1596.5,1596.4,6.72256]
[1744271495331,1.3846563,1596.5,1596.4,5.4694]
[1744271495533,1.3846563,1596.5,1596.4,6.72256]
[1744271495735,0.1315663,1596.5,1596.4,9.93036]
[1744271495933,1.3846563,1596.5,1596.4,9.93036]
[1744271496437,1.3846563,1596.5,1596.4,8.6772]
[1744271497039,1.3846563,1596.5,1596.4,9.93036]
[1744271497337,0.1315663,1596.5,1596.4,14.93036]
[1744271498131,1.3846563,1596.5,1596.4,14.93036]
[1744271498638,1.3846563,1596.5,1596.4,13.6772]
[1744271499032,1.3846563,1596.5,1596.4,14.93036]
[1744271499233,1.3846563,1596.5,1596.4,13.6772]
[1744271499435,1.3846563,1596.5,1596.4,8.6772]
[1744271499635,1.3846563,1596.5,1596.4,5.4694]
[1744271499839,1.3846563,1596.5,1596.4,8.6772]
[1744271500138,1.3846563,1596.5,1596.4,5.4694]
[1744271500437,1.3846563,1596.5,1596.4,8.6772]
[1744271500830,1.72179833,1596.5,1596.4,8.6772]
[1744271501129,1.25316,1596.4,1596.3,8.0323]
[1744271501332,1.2534,1596.1,1596.0,10.873]
[1744271501531,1.25348,1596.0,1595.9,3.2078]
[1744271501736,1.3850463,1596.0,1595.9,3.2078]
[1744271502135,1.25371,1595.7,1595.6,9.2038]
[1744271502342,0.1315663,1596.0,1595.6,9.2038]
[1744271502633,0.1315663,1596.0,1595.9,1.25356]
[1744271502838,1.3850763,1596.0,1595.8,4.46138]
[1744271503041,1.3850763,1596.0,1595.9,10.18]
[1744271503635,1.3850763,1596.0,1595.9,5.4152]
[1744271504137,7.1468763,1596.0,1595.9,5.4152]
[1744271504945,1.25364,1595.8,1595.7,40.8]
[1744271505143,1.25364,1595.8,1595.7,46.3806]
[1744271505441,5.7618,1595.9,1595.7,47.63431]
[1744271505643,0.1315663,1596.0,1595.8,8.7884]
[1744271505831,1.25351,1596.0,1595.9,5.4490337]
[1744271507441,1.25371,1595.7,1595.6,7.9726]
[1744271507746,1.25371,1595.7,1595.6,12.7386]
[1744271507948,1.25371,1595.7,1595.6,54.79239]
[1744271508240,1.25357,1595.9,1595.7,1.25367]
[1744271508445,1.25362,1595.9,1595.7,1.25371]
[1744271508746,1.25362,1595.9,1595.7,3.2078]
[1744271508944,1.25362,1595.9,1595.8,5.7961]
[1744271510344,1.25345,1596.1,1595.9,1.25349]
[1744271510546,1.25345,1596.1,1596.0,13.73301856]
[1744271513849,1.25345,1596.1,1596.0,14.98649856]
[1744271514043,1.25345,1596.1,1596.0,13.73301856]
[1744271514646,5.8217,1596.4,1596.1,1.25339]
[1744271514844,7.9308,1596.5,1596.1,5.6023]
[1744271515046,0.33686579,1596.4,1596.1,11.5983]
[1744271515245,1.25324,1596.3,1596.2,6.85562]
[1744271515550,1.25324,1596.3,1596.2,10.3814]
[1744271516046,1.25324,1596.3,1596.2,13.5892]
[1744271516555,1.25324,1596.3,1596.2,8.8101]
[1744271517049,1.25324,1596.3,1596.2,10.06342]
[1744271517250,1.25324,1596.3,1596.2,8.8101]
[1744271517456,1.28069929,1596.3,1596.2,8.8101]
[1744271519051,0.02745929,1596.3,1596.2,21.05942]
[1744271519259,1.26243056,1596.6,1596.5,1.25309]
[1744271519460,1.26243056,1596.6,1596.5,4.46089]
[1744271519647,1.26243056,1596.6,1596.5,3.2078]
[1744271519847,0.00938056,1596.6,1596.5,4.46089]
[1744271520155,0.00938056,1596.6,1596.5,10.35999]
[1744271520348,0.00938056,1596.6,1596.5,16.35599]
[1744271520548,0.00938056,1596.6,1596.5,21.35599]
[1744271520748,0.03215284,1596.6,1596.5,21.35599]
[1744271521251,1.28516284,1596.6,1596.5,15.1029]
[1744271522054,0.03215284,1596.6,1596.5,16.35599]
[1744271522351,1.28516284,1596.6,1596.5,16.35599]
[1744271522559,0.03215284,1596.6,1596.5,16.35599]
[1744271523156,1.28516284,1596.6,1596.5,15.1029]
[1744271524356,1.28516284,1596.6,1596.5,16.35599]
[1744271526258,0.03215284,1596.6,1596.5,16.35599]
[1744271527356,0.03215284,1596.6,1596.5,26.76199]
[1744271528058,0.03215284,1596.6,1596.5,21.76199]
[1744271528358,1.28516284,1596.6,1596.5,15.1029]
[1744271528554,1.28516284,1596.6,1596.5,9.2038]
[1744271528753,1.62272475,1596.6,1596.5,3.2078]
[1744271528952,1.25316,1596.4,1596.3,11.9427]
[1744271529957,0.02277228,1596.4,1596.3,13.19594]
[1744271530151,1.27593228,1596.4,1596.3,13.19594]
[1744271530355,1.27593228,1596.4,1596.3,11.9427]
[1744271530658,1.27593228,1596.4,1596.3,13.19594]
[1744271530859,1.27593228,1596.4,1596.3,53.99594]
[1744271531248,0.02277228,1596.4,1596.3,53.99594]
[1744271531653,1.27593228,1596.4,1596.3,53.99594]
[1744271533057,0.02277228,1596.4,1596.3,53.99594]
[1744271533856,0.02277228,1596.4,1596.3,58.99594]
[1744271535665,0.02277228,1596.4,1596.3,64.40194]
[1744271536265,0.02277228,1596.4,1596.3,69.11574]
[1744271536759,0.00938056,1596.6,1596.5,1.25309]
[1744271536964,0.00938056,1596.6,1596.5,4.46089]
[1744271537355,0.00938056,1596.6,1596.5,10.08659]
[1744271537965,0.00938056,1596.6,1596.5,55.88659]
[1744271538563,0.00938056,1596.6,1596.5,21.08259]
[1744271539566,5.6e-07,1596.6,1596.5,21.08259]
[1744271540161,5.6e-07,1596.6,1596.5,56.88259]
[1744271540768,5.6e-07,1596.6,1596.5,61.88259]
[1744271541865,5.6e-07,1596.6,1596.5,157.39159]
[1744271542568,4.74638235,1597.2,1597.1,1.25262]
[1744271542870,5.99892235,1597.2,1597.1,10.45641944]
[1744271543067,1.25254,1597.2,1597.1,10.45641944]
[1744271543271,7.08284,1597.2,1597.1,10.45641944]
[1744271543470,7.08284,1597.2,1597.1,9.20379944]
[1744271544070,7.08284,1597.2,1597.1,10.45641944]
[1744271544271,7.08284,1597.2,1597.1,16.03191944]
[1744271544973,5.8303,1597.2,1597.1,16.03191944]
[1744271545659,9.85978056,1597.3,1597.2,1.25254]
[1744271545866,9.85978056,1597.3,1597.2,6.82804]
[1744271546060,9.85978056,1597.3,1597.1,3.2078]
[1744271546267,5.6469,1597.2,1597.1,4.46037]
[1744271546468,6.89944,1597.2,1597.1,10.04752]
[1744271546671,5.6469,1597.2,1597.1,50.84752]
[1744271547670,5.6469,1597.2,1597.1,56.84351944]
[1744271547969,11.11228056,1597.3,1597.1,55.59089944]
[1744271548169,16.75918056,1597.3,1597.1,56.84347944]
[1744271548369,5.6469,1597.2,1597.1,56.84347944]
[1744271552875,0.00938056,1597.3,1597.2,1.25254]
[1744271553077,0.00938056,1597.3,1597.2,6.84484]
[1744271553373,0.00938056,1597.3,1597.2,12.84083944]
[1744271553576,5.44088056,1597.3,1597.2,12.84083944]
[1744271553771,0.00938056,1597.3,1597.2,12.84083944]
[1744271553972,0.00938056,1597.3,1597.2,17.92603944]
[1744271554367,0.00938056,1597.3,1597.2,58.72603944]